Cogmind - Beta 15 *** ADVENTURER MODE // 2025.08.02 @ 15:01:03 Player: Mbreton Result: Destroyed by P-80 Master with Gamma Rifle Performance ------------- Evolutions (7) 3500 Regions Visited (12) 2400 Robots Destroyed (70) 350 Value Destroyed (3527) 3527 Prototype IDs (8) 160 Alien Tech Used (0) 0 Bonus (1452) 1452 TOTAL SCORE: 11389 Bonus ------- Follower Combat Kills 652 Entered DSFs 500 Aligned with FarCom 300 Cogmind --------- Core Integrity 0/1300 Matter 264/300 Energy 82/100 System Corruption 44% Temperature Cool (0) Movement Core (50) Location -3/Research Parts ------- > --- POWER (3) -------- (None) > --- PROPULSION (6) --- (None) > --- UTILITY (9) ------ Advanced Target Analyzer Hacking Suite > --- WEAPON (3) ------- (None) > --- INVENTORY (5) ---- Small Battery (12) Advanced Transmission Jammer Improved Component Analysis Suite Peak State ------------ > --- POWER ------------ Micro Fission Core Micro Fission Core Antimatter Reactor > --- PROPULSION ------- Improved Antigrav System Improved Antigrav System Improved Antigrav System Improved Antigrav System Improved Antigrav System Improved Antigrav System > --- UTILITY ---------- Advanced Heat Sink Large Storage Unit Advanced Transmission Jammer Improved Cloaking Device Graphene Brace Hacking Suite Hacking Suite System Shield Improved Recalibrator > --- WEAPON ----------- Field Laser Plasma Rifle Compact HERF Cannon > --- INVENTORY -------- Antigrav System Improved Antigrav System Improved Antigrav System Cooled Antigrav System Medium Storage Unit Gravity Neutralizer Advanced Recoil Stabilizer Advanced Transmission Jammer Advanced ECM Suite Improved Medium Armor Plating Component Analysis Suite Improved Component Analysis Suite Drone Bay Improved Remote Datajack [Rating: 126] Favorites ----------- Power Micro Nuclear Core Engine Improved Ion Engine Power Core Micro Nuclear Core Reactor Antimatter Reactor Propulsion Advanced Treads Treads Advanced Treads Leg Improved Aluminum Leg Hover Unit Improved Antigrav System Flight Unit Impulse Thruster Utility Large Storage Unit Device Trap Scanner Storage Large Storage Unit Processor Advanced Target Analyzer Hackware Hacking Suite Protection Improved Medium Armor Plating Weapon Minigun Energy Gun EM Pulse Gun Energy Cannon Compact HERF Cannon Ballistic Gun Minigun Launcher EMP Blaster Special Weapon Improved Remote Datajack Slashing Weapon Greatsword Special Melee Weapon Advanced Datajack Build | -11 -10 -10 -10 -9 -8 -7 -7 -6 -5 -5 -4 -3 ------- Run | Yrd Mat Min Exi Min Mat Fac Sto Fac Fac DSF Fac Res Slots Evolved 14 | . . . . . 4 2 . 2 2 . 2 2 Power 2 | . . . . . . 1 . . . . . 1 Propulsion 4 | . . . . . 2 . . . 1 . . 1 Utility 7 | . . . . . 2 1 . 2 . . 2 . Weapon 1 | . . . . . . . . . 1 . . . Parts Attached 121 | 6 5 1 3 . 12 9 5 1 . 9 32 38 Power 14 | 1 1 . . . . 3 1 . . . 3 5 Engine 5 | 1 1 . . . . 2 . . . . . 1 Core 4 | . . . . . . 1 1 . . . 2 . Reactor 5 | . . . . . . . . . . . 1 4 Propulsion 49 | 2 2 . 2 . 5 1 1 . . 9 10 17 Treads 14 | . . . . . 4 1 1 . . 5 3 . Leg 7 | 2 2 . 2 . 1 . . . . . . . Wheel . | . . . . . . . . . . . . . Hover 20 | . . . . . . . . . . 4 7 9 Flight 8 | . . . . . . . . . . . . 8 Utility 33 | 1 2 1 . . 5 3 2 1 . . 11 7 Device 13 | . . . . . 1 1 1 1 . . 6 3 Storage 5 | 1 2 . . . . . . . . . . 2 Processor 1 | . . . . . . . . . . . . 1 Hackware 5 | . . . . . 1 1 . . . . 3 . Protection 9 | . . 1 . . 3 1 1 . . . 2 1 Artifact . | . . . . . . . . . . . . . Weapon 25 | 2 . . 1 . 2 2 1 . . . 8 9 Energy Gun 7 | 1 . . . . . . . . . . 2 4 Energy Cannon 2 | . . . 1 . . . . . . . 1 . Ballistic Gun 11 | 1 . . . . . 2 1 . . . 4 3 Ballistic Cannon . | . . . . . . . . . . . . . Launcher 2 | . . . . . 2 . . . . . . . Special Weapon 1 | . . . . . . . . . . . . 1 Impact Weapon . | . . . . . . . . . . . . . Slashing Weapon 1 | . . . . . . . . . . . . 1 Piercing Weapon . | . . . . . . . . . . . . . Special Melee Weapon 1 | . . . . . . . . . . . 1 . Unidentified Prototypes 6 | . . . 2 . . 1 1 1 . . . 1 Corrupted Parts 2 | . . . . . . . . . . . . 2 System Corruption 13 | . . . . . . . . . . . . 13 Parts Lost 80 | . . . . . 5 3 1 . . 2 17 52 Power 11 | . . . . . . 1 . . . 1 1 8 Propulsion 27 | . . . . . 1 . 1 . . 1 4 20 Utility 23 | . . . . . 2 1 . . . . 7 13 Weapon 19 | . . . . . 2 1 . . . . 5 11 Highest Loss Streak 26 | . . . . . 3 1 1 . . 1 4 26 To Critical Strikes 1 | . . . . . . . . . . . 1 . Average Backups 10 | 1 7 9 9 10 9 9 9 11 12 12 13 12 Power . | . 1 1 1 1 2 . . . . . . . Propulsion 2 | . 3 3 3 3 1 2 1 1 1 1 3 2 Utility 6 | . 1 3 3 4 4 6 8 10 11 11 9 8 Weapon . | . 2 2 2 2 . . . . . . . . Tool/Special . | . . . . . . . . . . . . . Unused Backups 11 | . 2 . . . 1 . 1 . . . . 7 Power 2 | . 1 . . . 1 . . . . . . . Propulsion . | . . . . . . . . . . . . . Utility 8 | . . . . . . . 1 . . . . 7 Weapon 1 | . 1 . . . . . . . . . . . Tool/Special . | . . . . . . . . . . . . . Average Slot Usage (%) 84 | . 85 95 99 99 92 97 99 67 58 54 59 73 Engine 7 | . 14 14 14 14 9 9 7 6 5 2 . . Core 3 | . . . . . . 4 7 6 5 5 3 3 Treads 15 | . . . . . 14 30 29 26 23 22 15 . Leg 8 | . 28 28 28 28 21 . . . . . . . Hover 3 | . . . . . . . . . . . 9 18 Device 7 | . . . . . 4 14 15 6 5 5 4 13 Storage 8 | . 14 14 14 14 9 7 7 6 5 5 5 7 Hackware 4 | . . . . . 7 5 7 . . . 3 8 Protection 6 | . . 10 14 14 8 7 7 . . . 2 1 Energy Gun 5 | . 14 14 13 13 8 2 . . . . 3 4 Ballistic Gun 8 | . 14 14 14 14 1 7 15 13 11 11 7 2 Launcher 2 | . . . . . 7 4 . . . . . . Peak Build Rating 126 | 6 11 11 28 16 34 47 52 84 84 99 110 126 Average Rating 48 | 4 9 10 14 15 28 44 49 82 84 84 67 90 On Entrance 43 | . 6 10 11 16 16 34 47 51 84 84 99 110 Naked Turns . | . . . . . . . . . . . . . Heaviest Build 119 | 14 36 34 34 34 43 51 50 118 118 118 119 65 Greatest Support 141 | 20 26 26 43 26 88 88 104 92 92 139 141 72 Greatest Overweight (x) 13 | . 1 1 1 1 . . . 1 1 3 1 13 Average Overweight (x) . | . . 1 . 1 . . . . 1 . . . Largest Inventory Capacity 25 | 8 25 15 15 15 15 15 15 15 15 15 15 15 Average Capacity 14 | 6 9 15 15 15 15 15 15 15 15 15 15 14 Most Carried 15 | 3 9 10 15 15 15 15 15 15 12 15 15 15 Average Carried 13 | 1 7 9 12 15 14 14 14 12 12 12 13 12 Final Capacity 15 | 8 15 15 15 15 15 15 15 15 15 15 15 5 Final Carried 15 | 2 9 9 15 15 15 14 15 12 12 15 15 3 Class Distribution -------------------- 39% | Mutant 37% | Hacker-Mutant 8% | Hacker-Skirmisher 8% | Scavenger-Mutant Dominant Class ---------------- Mutant | -10/Materials Mutant | -10/Mines Mutant | -10/Exiles Mutant | -9/Mines Hacker-Mutant | -8/Materials Hacker-Mutant | -7/Factory Hacker-Mutant | -7/Storage Scavenger-Mutant | -6/Factory Scavenger-Mutant | -5/Factory Scavenger-Mutant | -5/DSF Mutant | -4/Factory Hacker-Mutant | -3/Research Resources | -11 -10 -10 -10 -9 -8 -7 -7 -6 -5 -5 -4 -3 ----------- Run | Yrd Mat Min Exi Min Mat Fac Sto Fac Fac DSF Fac Res Matter Collected 3278 | 182 50 . . . 441 510 344 63 . 136 1181 371 Remotely . | . . . . . . . . . . . . . Salvage Created 3853 | . 50 . . . 988 817 41 . . . 1419 538 Parts 211 | . 3 . . . 54 51 3 . . . 63 37 Haulers Intercepted . | . . . . . . . . . . . . . Recyclers Shooed 4 | . . . . . 2 . . . . . 2 . Parts Field Recycled . | . . . . . . . . . . . . . Retrieved Matter . | . . . . . . . . . . . . . Parts Self-Destructed . | . . . . . . . . . . . . . Prevented . | . . . . . . . . . . . . . Kills | -11 -10 -10 -10 -9 -8 -7 -7 -6 -5 -5 -4 -3 ------- Run | Yrd Mat Min Exi Min Mat Fac Sto Fac Fac DSF Fac Res Combat Hostiles Destroyed 57 | . 1 . . . 15 14 1 . . . 19 7 Melee 2 | . . . . . . . . . . . . 2 Guns 33 | . 1 . . . 2 9 1 . . . 18 2 Cannons 2 | . . . . . . . . . . . 1 1 AOE 17 | . . . . . 12 5 . . . . . . Classes Destroyed 13 | . 1 . . . 6 4 . . . . 2 . Worker 3 | . . . . . 2 . . . . . 1 . Builder 3 | . . . . . . 2 . . . . 1 . Recycler 1 | . . . . . . . . . . . 1 . Mechanic 1 | . . . . . . . . . . . 1 . Operator 1 | . . . . . 1 . . . . . . . Watcher 4 | . . . . . 3 1 . . . . . . Swarmer 4 | . . . . . . 4 . . . . . . Grunt 20 | . 1 . . . 10 3 . . . . 6 . Brawler 3 | . . . . . . 1 . . . . 2 . Duelist 2 | . . . . . 1 . . . . . 1 . Sentry 7 | . . . . . 3 1 . . . . 2 1 Hunter 8 | . . . . . 1 1 1 . . . 2 3 Programmer 13 | . . . . . . 4 . . . . 6 3 Best Kill Streak 10 | . 1 . . . 10 3 1 . . . 4 2 Combat Bots Only 7 | . 1 . . . 7 3 1 . . . 3 2 Max Kills in Single Turn 3 | . 1 . . . 3 2 1 . . . 2 1 Gunslinging . | . . . . . . . . . . . . . Exploded 3 | . . . . . 3 2 . . . . . . Melee 1 | . . . . . . . . . . . . 1 Uniques/NPCs Destroyed . | . . . . . . . . . . . . . Combat | -11 -10 -10 -10 -9 -8 -7 -7 -6 -5 -5 -4 -3 -------- Run | Yrd Mat Min Exi Min Mat Fac Sto Fac Fac DSF Fac Res Hostile Shots Fired 1081 | . 3 . . . 78 163 37 3 . 26 334 437 Missed 328 | . . . . . 27 44 19 . . 5 82 151 Hits 753 | . 3 . . . 51 119 18 3 . 21 252 286 Melee 17 | . . . . . 3 . . . . . 14 . Projectile 736 | . 3 . . . 48 119 18 3 . 21 238 286 Critical Strikes 41 | . . . . . . 2 . . . . 18 21 Actively Blocked 19 | . . . . . . . . . . . . 19 Part Disruptions 5 | . . . . . . . . . . 2 1 2 Damage Taken 12007 | . 25 . . 21 798 1134 141 49 . 267 4586 4986 Core 2267 | . . . . . 93 69 8 . . 8 789 1300 Absorbed by Shields . | . . . . . . . . . . . . . Redirected to Shielding 51 | . . . . . 51 . . . . . . . Ignored by Resistances 3397 | . 8 . . 6 225 349 47 14 . 76 1320 1352 Core Remaining (%) 86 | 100 . . . 100 83 . 89 100 . 99 31 . Volleys Fired 296 | . 3 . . . 41 66 14 1 . . 126 45 Largest 3 | . 2 . . . 2 2 2 2 . . 3 3 Hottest 232 | . 60 . . . 73 73 53 53 . . 232 232 Shots Fired 513 | . 6 . . . 66 122 27 2 . . 235 55 Gun 446 | . 6 . . . 35 108 27 2 . . 222 46 Cannon 22 | . . . . . . . . . . . 13 9 Launcher 45 | . . . . . 31 14 . . . . . . Special . | . . . . . . . . . . . . . Kinetic 343 | . 3 . . . 10 104 27 2 . . 185 12 Thermal 60 | . . . . . . . . . . . 37 23 Explosive . | . . . . . . . . . . . . . Electromagnetic 110 | . 3 . . . 56 18 . . . . 13 20 Robot Hit Streak 35 | . 5 . . . 29 16 10 . . . 35 10 Robot Miss Streak 5 | . . . . . 3 3 3 2 . . 5 2 Penetration Max 2 | . . . . . . . . . . . 2 . Secondary Targets 2 | . . . . . . . . . . . 2 . Max Gunslinging Chain 1 | . . . . . . . . . . . 1 . Shots Hit Robots 407 | . 5 . . . 53 89 17 . . . 192 51 Core Hits 173 | . 2 . . . 37 40 5 1 . . 70 18 Critical Kills 6 | . . . . . . . . . . . 6 . Critical Parts Destroyed 10 | . . . . . 1 2 . . . . 6 1 Critical Strikes 21 | . . . . . 1 2 . . . . 13 5 Burn 2 | . . . . . . . . . . . 1 1 Destroy 16 | . . . . . 1 2 . . . . 12 1 Sever 3 | . . . . . . . . . . . . 3 Melee Attacks 7 | . . . . . . . . . . . . 7 Impact . | . . . . . . . . . . . . . Slashing 7 | . . . . . . . . . . . . 7 Piercing . | . . . . . . . . . . . . . Sneak Attacks . | . . . . . . . . . . . . . Combat Hostiles . | . . . . . . . . . . . . . Follow-up Attacks . | . . . . . . . . . . . . . Damage Inflicted 10165 | . 63 . . . 1857 1821 285 33 . . 4685 1421 Guns 7639 | . 63 . . . 375 1370 285 33 . . 4551 962 Cannons 340 | . . . . . . . . . . . 134 206 Explosions 1933 | . . . . . 1482 451 . . . . . . Melee 253 | . . . . . . . . . . . . 253 Ramming . | . . . . . . . . . . . . . Kinetic 6013 | . 23 . . . 92 1368 285 33 . . 3928 284 Thermal 1320 | . . . . . 165 22 . . . . 623 510 Explosive . | . . . . . . . . . . . . . Electromagnetic 2579 | . 40 . . . 1600 431 . . . . 134 374 Impact . | . . . . . . . . . . . . . Slashing 253 | . . . . . . . . . . . . 253 Piercing . | . . . . . . . . . . . . . Highest Corruption 44 | . . . . 1 . 3 3 2 . 1 14 44 Average Corruption 7 | . . . . 1 . 2 3 1 . 1 9 30 Corruption Purged . | . . . . . . . . . . . . . Corruption Blocked . | . . . . . . . . . . . . . Effects 129 | . . . . 6 . 27 14 1 . 2 51 28 Message Errors 21 | . . . . 1 . 8 . . . . 8 4 Matter Fused 30 | . . . . 2 . 7 5 . . 1 10 5 Heat Flow Errors 20 | . . . . 1 . 3 4 . . 1 5 6 Energy Discharges 20 | . . . . 2 . 4 1 . . . 11 2 Parts Rejected 3 | . . . . . . . 1 . . . . 2 Parts Fused 2 | . . . . . . 1 . . . . . 1 Data Loss (minor) 16 | . . . . . . 2 3 . . . 9 2 Data Loss (major) 6 | . . . . . . . . 1 . . 3 2 Misfires 3 | . . . . . . 2 . . . . 1 . Misdirections 2 | . . . . . . . . . . . . 2 Weapon Failures 6 | . . . . . . . . . . . 4 2 Overload Shots . | . . . . . . . . . . . . . Overflow Damage 56 | . . . . . 56 . . . . . . . Projectiles . | . . . . . . . . . . . . . Explosions 56 | . . . . . 56 . . . . . . . Melee . | . . . . . . . . . . . . . Knockbacks . | . . . . . . . . . . . . . Impact . | . . . . . . . . . . . . . Kinetic . | . . . . . . . . . . . . . Secondary . | . . . . . . . . . . . . . Self-Inflicted Damage 230 | . . . . . 147 83 . . . . . . Shots 17 | . . . . . 11 6 . . . . . . Rammed . | . . . . . . . . . . . . . Targets Rammed . | . . . . . . . . . . . . . Kicked . | . . . . . . . . . . . . . Crushed . | . . . . . . . . . . . . . Highest Temperature 637 | . 27 . . 230 81 280 277 4 . 220 637 400 Average Temperature 118 | . 18 . . 118 28 50 88 3 . 115 158 143 Received Heat Transfer 1250 | . 18 . . . 342 117 30 1 . 7 639 96 Effects 38 | . . . . . . . 3 . . . 26 9 Shutdowns 4 | . . . . . . . . . . . 3 1 Energy Bleed 6 | . . . . . . . . . . . 4 2 Interference 15 | . . . . . . . 3 . . . 8 4 Matter Decay 1 | . . . . . . . . . . . 1 . Short Circuit 3 | . . . . . . . . . . . 3 . Damage (minor) 2 | . . . . . . . . . . . . 2 Damage (major) 5 | . . . . . . . . . . . 5 . Damage (core) 2 | . . . . . . . . . . . 2 . Siege Activations . | . . . . . . . . . . . . . Martial Activations . | . . . . . . . . . . . . . Shielding Activations . | . . . . . . . . . . . . . Robots Disrupted 1 | . . . . . 1 . . . . . . . Combat Hostiles 1 | . . . . . 1 . . . . . . . Robots Corrupted 4 | . . . . . 2 . . . . . . 2 Combat Hostiles 3 | . . . . . 1 . . . . . . 2 Parts Fried 7 | . . . . . 3 2 . . . . . 2 Impact Corruptions . | . . . . . . . . . . . . . Robots Melted . | . . . . . . . . . . . . . Combat Hostiles . | . . . . . . . . . . . . . Parts Melted 2 | . . . . . . . . . . . . 2 Heat Transferred 2310 | . . . . . 200 50 . . . . 1294 766 Parts Sabotaged . | . . . . . . . . . . . . . Parts Stolen . | . . . . . . . . . . . . . Parts Stripped . | . . . . . . . . . . . . . Power Chain Reactions 9 | . . . . . 7 2 . . . . . . Alert | -11 -10 -10 -10 -9 -8 -7 -7 -6 -5 -5 -4 -3 ------- Run | Yrd Mat Min Exi Min Mat Fac Sto Fac Fac DSF Fac Res Maximum Alert Level . | . . . . . . . . . . . . . Low Security (%) 100 | 100 100 100 . 100 100 100 100 100 100 100 100 100 Level 1 . | . . . . . . . . . . . . . Level 2 . | . . . . . . . . . . . . . Level 3 . | . . . . . . . . . . . . . Level 4 . | . . . . . . . . . . . . . Level 5 . | . . . . . . . . . . . . . High Security . | . . . . . . . . . . . . . Max Security . | . . . . . . . . . . . . . Peak Influence 163 | . 20 . . 20 163 98 30 103 30 110 127 48 Initial 50 | . . . . . . 16 . . 30 12 50 . Average 20 | . 1 . . 1 49 15 1 19 26 49 30 5 Influence Increases 2388 | . 32 . . 20 457 477 60 123 . 283 733 203 Destroy 0b10 Robot/C 1480 | . 20 . . 20 300 280 20 80 . 140 480 140 Destroy 0b10 Robot/NC 65 | . . . . . 30 15 . . . . 20 . Destroy Leader 328 | . . . . . 76 72 10 20 . 40 80 30 Allied During Kill 182 | . . . . . . . . 23 . 64 95 . Successful Hack 74 | . 12 . . . . 20 21 . . . 3 18 Disable Machine 63 | . . . . . . 36 9 . . 9 9 . Destroy Structure 61 | . . . . . 36 9 . . . . 16 . Lose Combat Pursuer 135 | . . . . . 15 45 . . . 30 30 15 Influence Decreases 2388 | . 32 . . 20 415 519 60 50 53 193 843 203 Entered New Map 137 | . . . . . . 26 . . 43 8 60 . Time Decay 1655 | . 32 . . 20 363 483 56 50 10 . 541 100 Lost Part 297 | . . . . . 40 10 4 . . 20 120 103 Lost Ally 292 | . . . . . 5 . . . . 165 122 . Purge Threat 7 | . . . . . 7 . . . . . . . Squads Dispatched 23 | . . . . . 2 6 2 2 . 2 6 3 Investigation 3 | . . . . . 1 . . 1 . . . 1 Extermination 10 | . . . . . . 3 1 1 . . 3 2 Reinforcement 8 | . . . . . 1 3 1 . . 2 1 . Assault 1 | . . . . . . . . . . . 1 . Garrison 1 | . . . . . . . . . . . 1 . Intercept . | . . . . . . . . . . . . . Searches Triggered . | . . . . . . . . . . . . . Construction Impeded 2 | . . . . . . 2 . . . . . . Haulers Reinforced 1 | . . . . . . . . . . . 1 . Active Scanning Responses . | . . . . . . . . . . . . . Cargo Convoy Interrupts . | . . . . . . . . . . . . . Stealth | -11 -10 -10 -10 -9 -8 -7 -7 -6 -5 -5 -4 -3 --------- Run | Yrd Mat Min Exi Min Mat Fac Sto Fac Fac DSF Fac Res Distress Signals 10 | . . . . . 3 . 2 . . . 1 4 Communications Jammed . | . . . . . . . . . . . . . Distress Signals . | . . . . . . . . . . . . . Times Spotted 131 | . 3 . . 2 22 27 7 1 . 7 31 31 Peak Tracking Total 10 | . 2 . . 2 7 3 2 1 . 3 5 10 Tactical Retreats 11 | . . . . . 1 2 . . . 2 2 4 Traps | -11 -10 -10 -10 -9 -8 -7 -7 -6 -5 -5 -4 -3 ------- Run | Yrd Mat Min Exi Min Mat Fac Sto Fac Fac DSF Fac Res Traps Triggered 7 | . . . . 1 1 1 . . . 1 1 2 Indirectly . | . . . . . . . . . . . . . Trap Hack Attempts . | . . . . . . . . . . . . . Triggered . | . . . . . . . . . . . . . Disarmed . | . . . . . . . . . . . . . Reprogrammed 6 | . . . . . . . 6 . . . . . Reused . | . . . . . . . . . . . . . Traps Extracted . | . . . . . . . . . . . . . Installed . | . . . . . . . . . . . . . Triggered . | . . . . . . . . . . . . . Machines | -11 -10 -10 -10 -9 -8 -7 -7 -6 -5 -5 -4 -3 ---------- Run | Yrd Mat Min Exi Min Mat Fac Sto Fac Fac DSF Fac Res Machines Disabled 7 | . . . . . . 4 1 . . 1 1 . Max in Single Turn 1 | . . . . . . 1 1 . . . 1 . Garrison Access 1 | . . . . . . . . . . . 1 . Machines Repaired . | . . . . . . . . . . . . . Machines Dismantled . | . . . . . . . . . . . . . Machines Sabotaged . | . . . . . . . . . . . . . Overloaded Fab Kills . | . . . . . . . . . . . . . Hacking | -11 -10 -10 -10 -9 -8 -7 -7 -6 -5 -5 -4 -3 --------- Run | Yrd Mat Min Exi Min Mat Fac Sto Fac Fac DSF Fac Res Machines Accessed 28 | . 2 . 2 1 3 6 5 2 1 . 5 1 Terminals 14 | . 1 . . . 2 3 4 1 1 . 1 1 Fabricators 2 | . . . . . . . . . . . 2 . Repair Stations 2 | . . . . . . 1 . . . . 1 . Recycling Units 6 | . 1 . . . 1 1 1 1 . . 1 . Scanalyzers 1 | . . . . . . 1 . . . . . . Garrison Access . | . . . . . . . . . . . . . Total Hacks 47 | . 2 . 4 1 6 12 7 3 1 . 9 2 Successful 33 | . 2 . 4 1 6 6 6 1 1 . 4 2 Failed 14 | . . . . . . 6 1 2 . . 5 . Catastrophic . | . . . . . . . . . . . . . Database Lockouts . | . . . . . . . . . . . . . Manual 1 | . . . 1 . . . . . . . . . Terminals 24 | . 1 . . . 5 6 6 2 1 . 1 2 Fabricators 2 | . . . . . . . . . . . 2 . Repair Stations 5 | . . . . . . 1 . . . . 4 . Recycling Units 7 | . 1 . . . 1 1 1 1 . . 2 . Scanalyzers 4 | . . . . . . 4 . . . . . . Garrison Access . | . . . . . . . . . . . . . Terminal Hacks 23 | . 1 . 4 1 5 3 5 . 1 . 1 2 Record 4 | . . . 4 . . . . . . . . . Robot Analysis 1 | . 1 . . . . . . . . . . . Prototype ID Bank 1 | . . . . . 1 . . . . . . . Open Door 3 | . . . . 1 . . 2 . . . . . Open DSF 2 | . . . . . . . . . 1 . 1 . Emergency Access Points 1 | . . . . . 1 . . . . . . . Fabricator Index 1 | . . . . . . 1 . . . . . . Repair Station Index 1 | . . . . . . . 1 . . . . . Alert Level 3 | . . . . . 1 1 . . . . . 1 Unreport Threat 1 | . . . . . 1 . . . . . . . Locate Traps 1 | . . . . . . . 1 . . . . . Reprogram Traps 1 | . . . . . . . 1 . . . . . Reinforcement Status 1 | . . . . . 1 . . . . . . . Assault Status 1 | . . . . . . . . . . . . 1 Recall Reinforcements 1 | . . . . . . 1 . . . . . . Fabricator Hacks 2 | . . . . . . . . . . . 2 . Network Status 1 | . . . . . . . . . . . 1 . Build 1 | . . . . . . . . . . . 1 . Repair Station Hacks 1 | . . . . . . . . . . . 1 . Scan Component 1 | . . . . . . . . . . . 1 . Recycling Unit Hacks 5 | . 1 . . . 1 1 1 1 . . . . Report Inventory 5 | . 1 . . . 1 1 1 1 . . . . Scanalyzer 2 | . . . . . . 2 . . . . . . Insert Component 1 | . . . . . . 1 . . . . . . Analyze 1 | . . . . . . 1 . . . . . . Garrison Access Hacks . | . . . . . . . . . . . . . Unauthorized Hacks . | . . . . . . . . . . . . . Terminals . | . . . . . . . . . . . . . Fabricators . | . . . . . . . . . . . . . Repair Stations . | . . . . . . . . . . . . . Recycling Units . | . . . . . . . . . . . . . Scanalyzers . | . . . . . . . . . . . . . Garrison Access . | . . . . . . . . . . . . . Data Cores Recovered 1 | . . . . . 1 . . . . . . . Used . | . . . . . . . . . . . . . Hacking Detections 15 | . 1 . . . 2 5 3 1 . . 2 1 Full Trace Events 1 | . . . . . . . . 1 . . . . Feedback Events . | . . . . . . . . . . . . . Feedback Blocked . | . . . . . . . . . . . . . Robot Schematics Acquired . | . . . . . . . . . . . . . Robots Built . | . . . . . . . . . . . . . Authchips . | . . . . . . . . . . . . . Time . | . . . . . . . . . . . . . Total Robot Build Rating . | . . . . . . . . . . . . . Part Schematics Acquired 1 | . . . . . . 1 . . . . . . Parts Built 1 | . . . . . . . . . . . 1 . Authchips . | . . . . . . . . . . . . . Time 128 | . . . . . . . . . . . 128 . Total Part Build Rating 8 | . . . . . . . . . . . 8 . Parts Repaired . | . . . . . . . . . . . . . Time . | . . . . . . . . . . . . . Parts Recycled . | . . . . . . . . . . . . . Recycled Matter . | . . . . . . . . . . . . . Retrieved Matter . | . . . . . . . . . . . . . Retrieved Components . | . . . . . . . . . . . . . Parts Scanalyzed 1 | . . . . . . 1 . . . . . . Part Schematics Acquired 1 | . . . . . . 1 . . . . . . Parts Damaged . | . . . . . . . . . . . . . Bothacking | -11 -10 -10 -10 -9 -8 -7 -7 -6 -5 -5 -4 -3 ------------ Run | Yrd Mat Min Exi Min Mat Fac Sto Fac Fac DSF Fac Res Used RIF Installer . | . . . . . . . . . . . . . Robots Hacked . | . . . . . . . . . . . . . Non-combat . | . . . . . . . . . . . . . Combat . | . . . . . . . . . . . . . Robot Hacks Applied . | . . . . . . . . . . . . . Relay Couplers Released . | . . . . . . . . . . . . . Fabnet Peak Effective % . | . . . . . . . . . . . . . Robots Rewired . | . . . . . . . . . . . . . Allies Hacked . | . . . . . . . . . . . . . Hacks Repelled . | . . . . . . . . . . . . . Allies | -11 -10 -10 -10 -9 -8 -7 -7 -6 -5 -5 -4 -3 -------- Run | Yrd Mat Min Exi Min Mat Fac Sto Fac Fac DSF Fac Res Total Allies 3 | . . . . 3 . . . . . . . . Largest Group 3 | . . . . 3 1 . . . . . . . Highest-Rated Group 40 | . . . . 40 16 . . . . . . . Highest-Rated Ally 16 | . . . . 16 16 . . . . . . . Total Orders 6 | . . . . . . . . 3 . . 3 . EXPLORE 1 | . . . . . . . . 1 . . . . RETURN 5 | . . . . . . . . 2 . . 3 . Ally Attacks 163 | . . . . 9 2 . . 27 . 109 16 . Total Damage 2412 | . . . . 43 30 . . 476 . 1613 250 . Kills 22 | . . . . 1 . . . 5 . 10 6 . Allies Corrupted 1 | . . . . . . . . . . 1 . . Allies Melted . | . . . . . . . . . . . . . Intel | -11 -10 -10 -10 -9 -8 -7 -7 -6 -5 -5 -4 -3 ------- Run | Yrd Mat Min Exi Min Mat Fac Sto Fac Fac DSF Fac Res Active Infowar (turns) 3116 | . . . . . 526 2075 300 . . . 81 134 Traps 2971 | . . . . . 526 2075 300 . . . 70 . Cloaking 56 | . . . . . . . . . . . . 56 Jamming 11 | . . . . . . . . . . . 11 . ECM 132 | . . . . . . 54 . . . . . 78 Robot Analysis Total 1 | . 1 . . . . . . . . . . . Derelict Logs Recovered . | . . . . . . . . . . . . . Drone Launches 53 | . . . . . . . . 18 . 29 6 . Drone Recoveries 24 | . . . . . . . . 17 . . 7 . Exploration | -11 -10 -10 -10 -9 -8 -7 -7 -6 -5 -5 -4 -3 ------------- Run | Yrd Mat Min Exi Min Mat Fac Sto Fac Fac DSF Fac Res Turns Passed 8758 | 60 307 168 874 476 947 2075 589 417 31 335 1715 764 Spaces Moved 4768 | 44 197 88 457 247 555 894 330 165 14 128 1004 645 Core 15 | 9 . . . . . . . . . . . 6 Treads 2146 | . . . . . 191 894 330 165 14 127 425 . Legs 1388 | 35 197 88 457 247 364 . . . . . . . Wheels . | . . . . . . . . . . . . . Hover 1200 | . . . . . . . . . . 1 579 620 Flight 19 | . . . . . . . . . . . . 19 Fastest Speed 28 | 50 120 190 105 190 120 145 145 152 232 157 44 28 Average Speed 134 | 105 128 190 188 190 128 145 146 226 232 227 98 65 Slowest Speed 700 | 120 190 190 190 190 145 145 152 232 232 312 170 700 Overloaded Moves . | . . . . . . . . . . . . . Propulsion Burnouts . | . . . . . . . . . . . . . Robots Hopped . | . . . . . . . . . . . . . Potential Cave-ins . | . . . . . . . . . . . . . Cave-ins Triggered . | . . . . . . . . . . . . . Exploration Rate (%) 36 | 3 32 14 88 51 34 18 57 5 . 89 19 22 Regions Visited 12 Branch Regions 4 Pre-discovered Areas . | . . . . . . . . . . . . . Known Exits Taken 1 | . . . . . . . . . 1 . . . Unknown Exits Taken 10 | 1 1 1 1 1 1 1 1 1 . . 1 . Scrap Searched . | . . . . . . . . . . . . . Spaces Dug . | . . . . . . . . . . . . . Terrain Destroyed 53 | . . . . . 36 8 1 . . . 7 1 Melee . | . . . . . . . . . . . . . Projectile 9 | . . . . . . . 1 . . . 7 1 AOE 44 | . . . . . 36 8 . . . . . . Terrain Rammed . | . . . . . . . . . . . . . Walls Destroyed . | . . . . . . . . . . . . . Machines Disabled . | . . . . . . . . . . . . . Actions | -11 -10 -10 -10 -9 -8 -7 -7 -6 -5 -5 -4 -3 --------- Run | Yrd Mat Min Exi Min Mat Fac Sto Fac Fac DSF Fac Res Total 6655 | 57 246 89 469 254 719 1573 416 209 13 170 1520 920 Wait 1260 | . 27 . . 6 91 584 55 36 . 20 309 132 Move 4756 | 43 196 87 456 246 554 893 329 164 13 127 1003 645 Hop . | . . . . . . . . . . . . . Pick Up 115 | 8 9 1 5 . 12 7 4 3 . 5 25 36 Fast Attach 23 | . 2 . . 1 1 1 3 . . 2 9 4 Attach 85 | 6 . 1 1 . 8 6 1 1 . . 20 41 Detach 6 | . 1 . . . . . . . . . 1 4 Swap 52 | . 3 . 3 . 8 9 3 . . 11 14 1 Drop 50 | . 5 . 4 1 4 7 7 4 . 5 8 5 Fire 296 | . 3 . . . 41 66 14 1 . . 126 45 Melee 7 | . . . . . . . . . . . . 7 Ram . | . . . . . . . . . . . . . Kick . | . . . . . . . . . . . . . Crush . | . . . . . . . . . . . . . Escape Stasis . | . . . . . . . . . . . . . Rewire 5 | . . . . . . . . . . . 5 . Trap . | . . . . . . . . . . . . . Miscellaneous . | . . . . . . . . . . . . . Route ------- -11/Scrapyard -10/Materials -10/Mines -10/Exiles (discovered 2 exits: *Min x2) -9/Mines -8/Materials -7/Factory -7/Storage -6/Factory -5/Factory -5/DSF -4/Factory -3/Research History --------- Turn | Location | Event 4 | -11/Scrapyard | Discovered new exit (range 14) 61 | -11/Scrapyard | Entered Materials 255 | -10/Materials | Discovered new exit (range 7) 308 | -10/Materials | Build established: Mutant 368 | -10/Materials | Entered Mines 445 | -10/Mines | Deemed a non-threat by the Exiles lab entrance 446 | -10/Mines | Discovered new exit (range 5) 536 | -10/Mines | Entered Exiles 584 | -10/Exiles | Discovered new exit (range 14) 611 | -10/Exiles | Met 8R-AWN 656 | -10/Exiles | Met EX-HEX 728 | -10/Exiles | Met EX-BIN 763 | -10/Exiles | Aligned with FarCom system 764 | -10/Exiles | Given EX-Vault access code 837 | -10/Exiles | Opened EX-Vault 846 | -10/Exiles | Found Prototype Device 850 | -10/Exiles | Found Prototype Leg 851 | -10/Exiles | Identified Potential Leg 856 | -10/Exiles | Found Prototype Energy Cannon 857 | -10/Exiles | Identified Latent Energy Streamer 913 | -10/Exiles | Warned to stay clear of 0b10 Research branches 968 | -10/Exiles | Met EX-DEC 1037 | -10/Exiles | Visited The Gauntlet 1387 | -10/Exiles | Discovered new exit (range 14) 1410 | -10/Exiles | Left Exiles lab with Army-in-a-Box 1410 | -10/Exiles | Entered Mines 1420 | -9/Mines | Met a Derelict bent on vengeance 1478 | -9/Mines | Met a Derelict who couldn't figure out how to use a Trap Extractor 1549 | -9/Mines | Assisted by bots powering up and referring to "LRC-V3" 1607 | -9/Mines | Discovered new exit (range 9) 1709 | -9/Mines | Assembled infested the area 1714 | -9/Mines | Assisted by a Guerilla fighting off Assembled 1759 | -9/Mines | Lost 3 allies 1886 | -9/Mines | Entered Materials 1886 | -8/Materials | Accompanied by 1 ally 1886 | -8/Materials | Evolved 4 slots: Propulsion x2, Utility x2 2085 | -8/Materials | Lost 3 parts (2u1w) 2088 | -8/Materials | Destroyed 7 combat bots 2329 | -8/Materials | Build established: Hacker-Mutant 2807 | -8/Materials | Discovered new exit (range 15) 2833 | -8/Materials | Entered Factory 2833 | -7/Factory | Evolved 2 slots: Power x1, Utility x1 4702 | -7/Factory | Build established: Mutant 4889 | -7/Factory | Discovered new exit (range 13) 4908 | -7/Factory | Entered Storage 5157 | -7/Storage | Build established: Hacker-Mutant 5269 | -7/Storage | Met 01-MTF 5464 | -7/Storage | Discovered new exit (range 16) 5497 | -7/Storage | Entered Factory 5497 | -6/Factory | Accompanied by 2 allies (01-MTF) 5497 | -6/Factory | Evolved 2 slots: Utility x2 5500 | -6/Factory | 01-MTF left 5516 | -6/Factory | Identified Army-in-a-Box 5673 | -6/Factory | Discovered new exit (range 5) 5822 | -6/Factory | Build established: Scavenger-Mutant 5914 | -6/Factory | Entered another Factory area 5914 | -5/Factory | Evolved 2 slots: Propulsion x1, Weapon x1 5942 | -5/Factory | Identified exit to DSF 5945 | -5/Factory | Entered DSF 5977 | -5/DSF | Additional patrols routed to DSF 6127 | -5/DSF | Discovered new exit (range 23) 6205 | -5/DSF | Lost 12 allies 6280 | -5/DSF | Entered Factory 6280 | -4/Factory | Accompanied by 17 allies 6280 | -4/Factory | Evolved 2 slots: Utility x2 6745 | -4/Factory | Garrison activated, responded to threat 6819 | -4/Factory | Lost 4 parts (1n1u2w) 7027 | -4/Factory | Lost 4 parts (1p3u) 7264 | -4/Factory | Build established: Mutant 7348 | -4/Factory | System corruption reached 10% 7366 | -4/Factory | Lost 3 parts (2n1u) 7602 | -4/Factory | Fabricated Com. HERF Cannon? 7735 | -4/Factory | Core integrity fell below 50% 7770 | -4/Factory | Build established: Hacker-Skirmisher 7963 | -4/Factory | Discovered new exit (range 12) 7995 | -4/Factory | Entered Research 7995 | -3/Research | Evolved 2 slots: Power x1, Propulsion x1 8319 | -3/Research | System corruption reached 10% 8365 | -3/Research | System corruption reached 30% 8440 | -3/Research | Lost 26 parts (5p10n6u5w) 8580 | -3/Research | Spotted B-86 Titan 8669 | -3/Research | Core integrity fell below 50% 8750 | -3/Research | Core integrity fell below 20% 8759 | -3/Research | Destroyed by P-80 Master with Gamma Rifle Last Messages --------------- Impulse Thruster destroyed. P-80 Master resets P-80 Master, system corruption cleaned. Adv. Recoil Stabilizer destroyed. Graphene Brace destroyed. Lgt. Antimatter Reactor destroyed. K-01 Serf destroyed. Adv. Thermal Shield destroyed. Acquired Coil Gun. K-01 Serf collects debris. Impulse Thruster destroyed. Slug penetrates P-80 Master. Slug penetrates Wall. Slug penetrates S-43 Plague. K-01 Serf collects debris. System corrupted: Component data lost. Coil Gun destroyed. P-80 Master resets P-80 Master, system corruption cleaned. Coil Gun destroyed. Map ----- +----------------------------------------------------+ | ?????????????????????????????????????????????????? | | ?????????????????????????????????????????????????? | | ?????????????????????????????????????????????????? | | ?????????????????????????????????????????????????? | | ?????????????????????????????????????????????????? | | ?????????????????????????????????????????????????? | | ?????????????????????????????????????????????????? | | ?????????????????????????????????????????????????? | | ?????????????????????????????????????????????????? | | ?????????????????????????????????????????????????? | | ?????????????????????????????????????????????????? | | ???????????????????##########????????????????????? | | ???????????????????# #??######????????????? | | ???????????????????# ! #? ! ? #??????????? | | ?????????????####### # #??????????? | | ?????????? "%+ =# #??????????? | | ????????? ###### = / #??????????? | | ???????????????????# # "T" ???????????? | | ???????????????????# # """?????????????? | | ???????????????????# #? ????????????? | | ?????????? ???????# #? ???????????? | | ?????????# #############+######+######????????? | | ?????????# u^ !!p!= pp ^ ???????? | | ???????? ^ k |=!sss s k ^k ???????? | | ???????? =[[ ! s ^ ???????? | | ?????????# ^ w %[%[@ ???????? | | ???????????+############= ######+######????????? | | ?????????????????????# #* #????????????????????? | | ??????????????????????## #????????????????????? | | ???????????????????????#!* #????????????????????? | | ???????????????????????#%= #????????????????????? | | ???????????????????????#=ku #????????????????????? | | ???????????????????????# #????????????????????? | | ???????????????????????# #????????????????????? | | ???????????????????????# #????????????????????? | | ???????????????????????# ########?????????????? | | ???????????????????????# #?????????????? | | ???????????????????????# #?????????????? | | ???????????????????????# #?????????????? | | ???????????????????????# #?????????????? | | ???????????????????????## T#### #?????????????? | | ????????????????????????####??# #?????????????? | | ???????????????????????######## ########??????? | | ???????????????????????# #??????? | | ???????????????????????# ##?????? | | ???????????????????????# * +?????? | | ?????????????????? ???# ##?????? | | ????????????????? ??# #??????? | | ????????????????? ?# #??????? | | ???????????????? # #??????? | +----------------------------------------------------+ Best States ------------- Heat Dissipation 65 Energy Generation 41 Energy Capacity 425 Matter Stores 300 Matter Capacity 300 Sight Range 16 Terrain Scan Density 10 ECM Strength 2 Jamming Range 16 Cloak Strength 3 Additional Mass Support 12 Armor Coverage 825 Resistance: KI 20 Resistance: TH 30 Resistance: EX 20 Resistance: EM 20 Resistance: I 20 Resistance: S 20 Resistance: P 20 Weapon Shielding 33 Evasion (%) 57 Target Analysis 8 Recoil Reduction 6 Offensive Hacking 30 Defensive Hacking 10 Item Schematics ----------------- Med. Treads | -7/Factory | Scanalyzed Robot Schematics ------------------ None Fabricated ------------ Com. HERF Cannon | x1 | -4/Factory | Preloaded Repaired ---------- Nothing Alien Tech Used ----------------- None Achievements -------------- Leap Before You Look Release The Drones! Respectable Loadout Challenges ------------ None Game ------ Seed RecyclingLaserActivator Manual? 0 Play Time 01:55:03 Cumulative 32.8 hours Start 2025.08.02 @ 12:59:28 End 2025.08.02 @ 15:01:03 Sessions 1 Manual Loads 0 Difficulty Adventurer Special Mode None Game No. 26 Rogue 0 Adventurer 26 Explorer 0 Win Type - Total 0 Types 0/0/0/0/0/0/0/0/0/0 Lore% 8 Gallery% 26 Achievement% 24 Wizard Run 0 Options --------- Layout 1 ASCII 0 Keyboard 0 Movement Mouse Keybinds 0 Fullscreen 1 Font 24/Smallcaps Map View 50x35 Zoom Use 0% Tactical HUD 0 Map Filters NONE Filters NONE Steam 1 RUN: b2817739-9b15-4231-ad5e-780a3a9024b2